[Event "DVM U12 2021-22"]
[Site "Naumburg"]
[Date "2022.03.28"]
[Round "6"]
[White "Klaska, Philipp Leon"]
[Black "Middendorf, Sven-Jonas"]
[Result "1-0"]
[ECO "D35"]
[WhiteElo "1959"]
[BlackElo "1424"]
[Annotator "RC"]
[PlyCount "49"]
[EventDate "2022.03.25"]
[EventType "team-tourn"]
[EventRounds "7"]
[EventCountry "GER"]
[SourceTitle "playchess.com"]
[Source "ChessBase"]
[SourceQuality "1"]
[TimeControl "40/5400+30:1800+30"]

1. d4 {[%emt 0:00:17]} Nf6 {[%emt 0:00:06]} 2. c4 {[%emt 0:00:03]} e6 {[%emt 0:00:04]} 3. Nc3 {[%emt 0:00:04]} d5 {[%emt 0:00:09]} 4. cxd5 {[%emt 0:00:13]} exd5 {[%emt 0:00:07]} 5. Bg5 {[%emt 0:00:09]} Nbd7 {[%emt 0:01:15]} 6. e3 {[%emt 0:00:43]} c6 {[%emt 0:00:36]} 7. Bd3 {[%emt 0:00:53]} Bd6 {[%emt 0:03:46]} 8. Qc2 {[%emt 0:03:58]} h6 {[%emt 0:06:31]} 9. Bh4 {[%emt 0:00:34]} g5 {[%emt 0:09:54]} 10. Bg3 {[%emt 0:00:36]} Bxg3 {[%emt 0:04:54]} 11. hxg3 {[%emt 0:00:17]} c5 {[%emt 0:01:05]} 12. dxc5 {[%emt 0:10:40]} Nxc5 {[%emt 0:01:46]} 13. Nf3 {[%emt 0:01:04]} Ng4 {[%emt 0:10:19]} 14. Bb5+ {[%emt 0:06:41]} Bd7 {[%emt 0:01:38]} 15. Bxd7+ {[%emt 0:00:42]} Nxd7 {[%emt 0:00:26]} 16. Nxd5 {[%emt 0:08:38]} Rc8 {[%emt 0:05:14]} 17. Qe4+ {[%emt 0:03:11]} Nde5 {[%emt 0:01:48]} 18. Nxe5 {[%emt 0:01:39]} Nxe5 {[%emt 0:06:33]} 19. Qxe5+ {[%emt 0:00:28]} Kd7 {[%emt 0:00:10]} 20. Nf6+ {[%emt 0:01:38]} Kc6 {[%emt 0:00:08]} 21. O-O {[%emt 0:00:26]} a6 {[%emt 0:01:20]} 22. Rfd1 {[%emt 0:00:57]} Qf8 {[%emt 0:00:16]} 23. Rac1+ {[%emt 0:00:14]} Kb6 {[%emt 0:00:13]} 24. Nd7+ {[%emt 0:00:04]} Ka7 {[%emt 0:00:26]} 25. Nxf8 {[%emt 0:00:25]} 1-0

[Event "DVM U12 2021-22"]
[Site "Naumburg"]
[Date "2022.03.28"]
[Round "6"]
[White "Helms, Finn"]
[Black "Braun, Julian"]
[Result "1-0"]
[ECO "C50"]
[WhiteElo "1911"]
[BlackElo "1620"]
[Annotator "RC"]
[PlyCount "65"]
[EventDate "2022.03.25"]
[EventType "team-tourn"]
[EventRounds "7"]
[EventCountry "GER"]
[SourceTitle "playchess.com"]
[Source "ChessBase"]
[SourceQuality "1"]
[TimeControl "40/5400+30:1800+30"]

1. e4 {[%emt 0:00:07]} e5 {[%emt 0:00:00]} 2. Nf3 {[%emt 0:00:08]} Nc6 {[%emt 0:00:01]} 3. Bc4 {[%emt 0:00:10]} Nf6 {[%emt 0:00:04]} 4. d3 {[%emt 0:00:27]} Bc5 {[%emt 0:00:01]} 5. c3 {[%emt 0:00:34]} a6 {[%emt 0:00:13]} 6. O-O {[%emt 0:00:22]} O-O {[%emt 0:00:25]} 7. a4 {[%emt 0:00:37]} Ba7 {[%emt 0:04:44]} 8. Be3 {[%emt 0:01:13]} d6 {[%emt 0:06:03]} 9. Nbd2 {[%emt 0:02:13]} Be6 {[%emt 0:04:16]} 10. Re1 {[%emt 0:04:13]} Re8 {[%emt 0:03:47]} 11. Bxe6 {[%emt 0:09:08]} fxe6 {[%emt 0:00:39]} 12. Bxa7 {[%emt 0:00:13]} Rxa7 {[%emt 0:01:03]} 13. d4 {[%emt 0:01:03]} exd4 {[%emt 0:00:12]} 14. cxd4 {[%emt 0:00:27]} e5 {[%emt 0:01:03]} 15. Qb3+ {[%emt 0:00:45]} Kh8 {[%emt 0:02:06]} 16. Ng5 {[%emt 0:00:39]} Rf8 {[%emt 0:01:31]} 17. Nf7+ {[%emt 0:04:32]} Rxf7 {[%emt 0:00:02]} 18. Qxf7 {[%emt 0:00:04]} Nxd4 {[%emt 0:00:41]} 19. Rac1 {[%emt 0:01:05]} c6 {[%emt 0:07:37]} 20. Rc3 {[%emt 0:03:37]} Ra8 {[%emt 0:04:57]} 21. Nf3 {[%emt 0:02:31]} Nxf3+ {[%emt 0:01:03]} 22. Rxf3 {[%emt 0:00:33]} Rb8 {[%emt 0:02:15]} 23. Rd3 {[%emt 0:03:01]} Qa5 {[%emt 0:04:44]} 24. Ree3 {[%emt 0:02:01]} Qxa4 {[%emt 0:02:00]} 25. h3 {[%emt 0:02:47]} Rg8 {[%emt 0:06:43]} 26. Rxd6 {[%emt 0:01:27]} Nxe4 {[%emt 0:01:36]} 27. Rd7 {[%emt 0:01:23]} b5 {[%emt 0:05:51]} 28. Re7 {[%emt 0:05:17]} Qd4 {[%emt 0:04:14]} 29. Rxe4 {[%emt 0:01:23]} Qxe4 {[%emt 0:00:48]} 30. Re8 {[%emt 0:00:12]} Qb1+ {[%emt 0:01:06]} 31. Kh2 {[%emt 0:00:39]} Qh1+ {[%emt 0:00:13]} 32. Kxh1 {[%emt 0:00:04]} Rxe8 {[%emt 0:00:02]} 33. Qxe8# {[%emt 0:00:02]} 1-0

[Event "DVM U12 2021-22"]
[Site "Naumburg"]
[Date "2022.03.28"]
[Round "6"]
[White "Haubold, Christian Lucas"]
[Black "Zobel, Christian"]
[Result "0-1"]
[ECO "C42"]
[WhiteElo "1808"]
[BlackElo "1547"]
[Annotator "NA RC"]
[PlyCount "66"]
[EventDate "2022.03.25"]
[EventType "team-tourn"]
[EventRounds "7"]
[EventCountry "GER"]
[SourceTitle "playchess.com"]
[Source "ChessBase"]
[SourceQuality "1"]
[TimeControl "40/5400+30:1800+30"]

{[%evp 16,62,37,6,61,25,39,32767,-7,32767,32767,-48,32767,32767,32767,32767,32767,32767,32767,-314,32767,-297,-305,-321,32767,-355,-382,-454,-493,-512,-537,-537,32767,-553,-563,32767,-527,32767,32767,32767,-589,-694,-772,-693,-810,-1740,-1983,-1322,-1345]} 1. e4 {[%emt 0:00:03]} e5 {[%emt 0:00:04]} 2. Nf3 {[%emt 0:00:06]} Nf6 {[%emt 0:00:04]} 3. Nxe5 {[%emt 0:00:35]} d6 {[%emt 0:00:05]} 4. Nf3 {[%emt 0:00:25]} Nxe4 {[%emt 0:00:06]} 5. d4 {[%emt 0:00:42]} d5 {[%emt 0:00:39]} 6. Bd3 {[%emt 0:00:46]} Bd6 {[%emt 0:01:06]} 7. O-O {[%emt 0:01:06]} O-O {[%emt 0:02:10]} 8. c4 {[%emt 0:02:11]} c6 {[%emt 0:02:01]} 9. Qc2 {[%emt 0:01:24]} (9. Re1 $14) 9... f5 {[%emt 0:04:53]} (9... Na6 $11) 10. Nc3 {[%emt 0:04:54]} Be6 {[%emt 0:04:38]} 11. b3 {[%emt 0:08:32]} Nd7 {[%emt 0:05:19]} 12. Re1 {[%emt 0:15:54]} Bf7 {[%emt 0:06:43]} 13. a3 {[%emt 0:12:24]} Rc8 {[%emt 0:06:07]} 14. c5 {[%emt 0:05:44]} Bb8 {[%emt 0:03:56]} 15. Ne2 {[%emt 0:10:57]} Bh5 {[%emt 0:09:09]} 16. Bxe4 {[%emt 0:01:18]} fxe4 {[%emt 0:02:25]} 17. Ng5 {[%emt 0:01:24]} Qf6 {[%emt 0:04:48]} 18. Be3 {[%emt 0:01:58]} (18. Ng3 $142 Bxg3 19. fxg3) 18... h6 {[%emt 0:03:48]} 19. Nh3 {[%emt 0:01:08]} Bg4 {[%emt 0:02:08]} 20. Nhf4 {[%emt 0:04:47]} g5 {[%emt 0:01:01]} ({Worse is} 20... Qh4 21. h3 Bxe2 22. Nxe2 $17) 21. Nh3 {[%emt 0:00:28]} Bxh3 {[%emt 0:00:06]} 22. gxh3 {[%emt 0:00:05]} Qf5 {[%emt 0:02:38]} 23. Ng3 {[%emt 0:01:39]} Qxh3 {[%emt 0:00:29]} 24. Qe2 {[%emt 0:02:40]} Rf3 {[%emt 0:05:14]} 25. Qf1 {[%emt 0:00:37]} Qh4 {[%emt 0:02:26]} 26. Qg2 {[%emt 0:03:07]} Nf6 {[%emt 0:02:53]} 27. b4 {[%emt 0:02:37]} Nh5 {[%emt 0:02:03]} 28. a4 {[%emt 0:04:41]} Nxg3 {[%emt 0:02:28]} 29. hxg3 {[%emt 0:01:03] [#]} Bxg3 $1 {[%emt 0:00:07]} 30. Kf1 {[%emt 0:00:17]} Rcf8 {[%emt 0:01:27]} 31. Ra2 {[%emt 0:00:18]} Bf4 $19 {[%emt 0:01:07]} 32. Bxf4 {[%emt 0:00:42]} R3xf4 {[%emt 0:00:09]} 33. Ree2 {[%emt 0:00:24]} Rg4 {[%emt 0:00:11]} 0-1

[Event "DVM U12 2021-22"]
[Site "Naumburg"]
[Date "2022.03.28"]
[Round "6"]
[White "Burkart, Lloyd Shang"]
[Black "Zhang, Yibo"]
[Result "0-1"]
[ECO "A13"]
[WhiteElo "1681"]
[BlackElo "1397"]
[Annotator "NA RC"]
[PlyCount "100"]
[EventDate "2022.03.25"]
[EventType "team-tourn"]
[EventRounds "7"]
[EventCountry "GER"]
[SourceTitle "playchess.com"]
[Source "ChessBase"]
[SourceQuality "1"]
[TimeControl "40/5400+30:1800+30"]

1. Nf3 {[%emt 0:00:17]} d5 {[%emt 0:00:21]} 2. c4 {[%emt 0:00:25]} e6 {[%emt 0:00:08]} 3. g3 {[%emt 0:00:31]} c6 {[%emt 0:00:19]} 4. Bg2 {[%emt 0:01:02]} dxc4 {[%emt 0:00:42]} 5. Qc2 {[%emt 0:00:32]} b5 {[%emt 0:01:57]} 6. a4 {[%emt 0:04:10]} Bb7 {[%emt 0:01:27]} 7. b3 {[%emt 0:03:12]} cxb3 {[%emt 0:01:26]} 8. Qxb3 {[%emt 0:00:08]} b4 {[%emt 0:01:21]} 9. Bb2 {[%emt 0:06:21]} a5 {[%emt 0:03:50]} 10. O-O {[%emt 0:00:58]} Nf6 {[%emt 0:00:38]} 11. d3 {[%emt 0:05:28]} Be7 {[%emt 0:01:00]} 12. Nbd2 {[%emt 0:00:40]} O-O {[%emt 0:01:47]} 13. Rac1 {[%emt 0:00:51]} c5 {[%emt 0:11:29]} 14. Rfd1 {[%emt 0:04:47]} Na6 {[%emt 0:07:07]} 15. Nc4 {[%emt 0:05:51]} Nd7 16. e3 {[%emt 0:11:56]} Qc7 {[%emt 0:08:39]} 17. e4 {[%emt 0:09:23]} Rfd8 {[%emt 0:03:17]} 18. Nfe5 {[%emt 0:07:11]} Nab8 {[%emt 0:07:44]} 19. f4 {[%emt 0:06:57]} Nxe5 {[%emt 0:10:14]} 20. Bxe5 {[%emt 0:03:37]} Qc6 {[%emt 0:00:32]} 21. Ne3 {[%emt 0:05:58]} Qa6 {[%emt 0:01:41]} 22. h4 {[%emt 0:09:40]} Nc6 {[%emt 0:02:26]} 23. Ba1 {[%emt 0:00:36]} Nd4 {[%emt 0:00:52]} 24. Bxd4 {[%emt 0:00:27]} Rxd4 {[%emt 0:00:45]} 25. Nc4 {[%emt 0:02:16]} Rad8 {[%emt 0:06:48]} 26. Rd2 {[%emt 0:02:02]} Bf6 {[%emt 0:08:49]} 27. Rcd1 {[%emt 0:05:05]} R4d7 {[%emt 0:00:56]} 28. e5 {[%emt 0:00:55]} Be7 {[%emt 0:01:41]} 29. Bxb7 {[%emt 0:00:44]} Rxb7 {[%emt 0:00:28]} 30. Kf2 {[%emt 0:00:25]} Rbd7 {[%emt 0:01:07]} 31. Qb2 {[%emt 0:01:40]} Rd4 {[%emt 0:02:21]} 32. Qb3 {[%emt 0:00:16]} h6 {[%emt 0:00:19]} 33. Ke3 {[%emt 0:01:18]} Kh8 {[%emt 0:00:58]} 34. Rg1 {[%emt 0:00:32]} f6 {[%emt 0:00:42]} 35. Rf1 {[%emt 0:00:36]} Kg8 {[%emt 0:02:31]} 36. Rfd1 {[%emt 0:00:51]} Kf8 {[%emt 0:01:20]} 37. Re1 {[%emt 0:00:23]} g5 {[%emt 0:00:31]} 38. hxg5 {[%emt 0:00:25]} hxg5 {[%emt 0:03:19]} 39. Rf1 {[%emt 0:00:53]} Ke8 {[%emt 0:01:04]} 40. Rg1 {[%emt 0:00:37]} g4 {[%emt 0:01:16]} 41. Rf1 {[%emt 0:30:31]} f5 {[%emt 0:30:53]} 42. Rff2 {[%emt 0:00:00]} Qc6 {[%emt 0:00:00]} 43. Rd1 {[%emt 0:00:00]} Qe4+ {[%emt 0:00:00]} 44. Kd2 {[%emt 0:00:00]} Rxd3+ {[%emt 0:00:00]} 45. Kc1 {[%emt 0:00:00]} Rxb3 {[%emt 0:00:00]} 46. Rxd8+ {[%emt 0:00:00]} Kxd8 {[%emt 0:00:00]} 47. Rd2+ {[%emt 0:00:00]} Kc7 {[%emt 0:00:00]} 48. Nb2 {[%emt 0:00:00]} Qe1+ {[%emt 0:00:00]} 49. Rd1 {[%emt 0:00:00]} Qc3+ {[%emt 0:00:00]} 50. Kb1 {[%emt 0:00:00]} Qxb2# {[%emt 0:00:00]} 0-1

[Event "DVM U12 2021-22"]
[Site "Naumburg"]
[Date "2022.03.28"]
[Round "6"]
[White "Xue, Luka"]
[Black "Barthel, Jacob"]
[Result "1-0"]
[ECO "D35"]
[WhiteElo "1610"]
[BlackElo "1321"]
[Annotator "NA RC"]
[PlyCount "147"]
[EventDate "2022.03.25"]
[EventType "team-tourn"]
[EventRounds "7"]
[EventCountry "GER"]
[SourceTitle "playchess.com"]
[Source "ChessBase"]
[SourceQuality "1"]
[TimeControl "40/5400+30:1800+30"]

1. d4 {[%emt 0:00:04]} d5 {[%emt 0:00:08]} 2. c4 {[%emt 0:00:08]} e6 {[%emt 0:00:10]} 3. Nc3 {[%emt 0:00:04]} Nf6 {[%emt 0:00:09]} 4. Bg5 {[%emt 0:00:07]} c6 {[%emt 0:00:58]} 5. cxd5 {[%emt 0:00:16]} exd5 {[%emt 0:00:11]} 6. e3 {[%emt 0:00:14]} Bf5 {[%emt 0:00:20]} 7. Qf3 {[%emt 0:00:24]} Bg6 {[%emt 0:11:24]} 8. Bxf6 {[%emt 0:00:06]} Qxf6 {[%emt 0:01:43]} 9. Qxf6 {[%emt 0:00:08]} gxf6 {[%emt 0:00:05]} 10. Nf3 {[%emt 0:02:40]} h5 {[%emt 0:00:40]} 11. g3 {[%emt 0:01:08]} Bd6 {[%emt 0:00:43]} 12. Bh3 {[%emt 0:01:12]} Na6 {[%emt 0:12:35]} 13. a3 {[%emt 0:02:05]} Nc7 {[%emt 0:00:56]} 14. Nh4 {[%emt 0:00:57]} Rg8 {[%emt 0:10:54]} 15. Nf5 {[%emt 0:02:09]} Bxf5 {[%emt 0:10:05]} 16. Bxf5 {[%emt 0:00:19]} Ne6 {[%emt 0:02:57]} 17. b4 {[%emt 0:07:46]} b5 {[%emt 0:03:34]} 18. Ke2 {[%emt 0:15:38]} Ke7 {[%emt 0:02:01]} 19. Na2 {[%emt 0:05:56]} Ng7 {[%emt 0:03:36]} 20. Bh3 {[%emt 0:03:31]} f5 {[%emt 0:01:37]} 21. Nc1 {[%emt 0:01:42]} Kf6 {[%emt 0:03:31]} 22. Nb3 {[%emt 0:03:25]} Rgc8 {[%emt 0:03:37]} 23. Rhc1 {[%emt 0:03:25]} Ne6 {[%emt 0:02:20]} 24. Rc3 {[%emt 0:05:20]} Rc7 {[%emt 0:00:55]} 25. Rac1 {[%emt 0:00:42]} Rac8 {[%emt 0:01:39]} 26. Na5 {[%emt 0:01:32]} Nd8 {[%emt 0:02:21]} 27. Bg2 {[%emt 0:06:45]} Ke6 {[%emt 0:04:12]} 28. f4 {[%emt 0:04:22]} Be7 {[%emt 0:01:38]} 29. h4 {[%emt 0:08:54]} Bf6 {[%emt 0:05:25]} 30. Bf3 {[%emt 0:01:11]} Kd6 {[%emt 0:00:20]} 31. Bxh5 {[%emt 0:01:00]} Re7 {[%emt 0:02:13]} 32. Kf2 {[%emt 0:02:06]} Re8 {[%emt 0:04:34]} 33. Bf3 {[%emt 0:01:08]} Be7 {[%emt 0:01:57]} 34. Bg2 {[%emt 0:01:17]} Rc7 {[%emt 0:02:25]} 35. Bh3 {[%emt 0:00:25]} Rh8 {[%emt 0:02:01]} 36. Bxf5 {[%emt 0:00:30]} Rh5 {[%emt 0:00:33]} 37. Bg4 {[%emt 0:00:16]} Rh8 {[%emt 0:00:27]} 38. Be2 {[%emt 0:03:01]} a6 {[%emt 0:01:28]} 39. Nb3 {[%emt 0:00:55]} Ne6 {[%emt 0:01:19]} 40. Nc5 {[%emt 0:00:22]} Nd8 {[%emt 0:01:48]} 41. Nxa6 {[%emt 0:30:31]} Rb7 {[%emt 0:02:20]} 42. Nc5 {[%emt 0:00:00]} Rb6 {[%emt 0:00:55]} 43. Nd3 {[%emt 0:00:00]} Bf6 {[%emt 0:01:02]} 44. h5 {[%emt 0:00:00]} Bg7 {[%emt 0:00:59]} 45. g4 {[%emt 0:00:00]} f6 {[%emt 0:00:24]} 46. Ne1 {[%emt 0:00:00]} Bh6 {[%emt 0:00:54]} 47. Nf3 {[%emt 0:00:00]} Rg8 {[%emt 0:00:09]} 48. Nh4 {[%emt 0:00:00]} Kd7 {[%emt 0:01:22]} 49. Nf5 {[%emt 0:00:00]} Bf8 {[%emt 0:00:11]} 50. Rg1 {[%emt 0:00:00]} Ne6 {[%emt 0:00:25]} 51. Bd3 {[%emt 0:00:00]} Rb7 {[%emt 0:01:56]} 52. Nh4 {[%emt 0:00:00]} Kd6 {[%emt 0:00:37]} 53. Bf5 {[%emt 0:00:00]} Rc7 {[%emt 0:01:50]} 54. Bxe6 {[%emt 0:00:00]} Kxe6 {[%emt 0:00:07]} 55. Ng6 {[%emt 0:00:00]} Kd6 {[%emt 0:02:08]} 56. g5 {[%emt 0:00:00]} fxg5 {[%emt 0:00:36]} 57. fxg5 {[%emt 0:00:00]} Rh7 {[%emt 0:02:35]} 58. Nf4 {[%emt 0:00:00]} Rhh8 {[%emt 0:02:11]} 59. e4 {[%emt 0:02:25]} dxe4 {[%emt 0:06:49]} 60. Rh3 {[%emt 0:02:29]} Bg7 {[%emt 0:00:48]} 61. Ke3 {[%emt 0:00:44]} Bh6 {[%emt 0:08:45]} 62. Ng6 {[%emt 0:05:20]} Rxg6 {[%emt 0:04:11]} 63. hxg6 {[%emt 0:00:41]} Bxg5+ {[%emt 0:00:20]} 64. Rxg5 {[%emt 0:00:10]} Rxh3+ {[%emt 0:00:06]} 65. Kxe4 {[%emt 0:00:07]} Rh8 {[%emt 0:01:09]} 66. g7 {[%emt 0:00:07]} Rg8 {[%emt 0:00:17]} 67. Kf5 {[%emt 0:00:07]} Ke7 {[%emt 0:00:15]} 68. Kg6 {[%emt 0:00:06]} c5 {[%emt 0:01:03]} 69. dxc5 {[%emt 0:00:15]} Rc8 {[%emt 0:00:29]} 70. Kh7 {[%emt 0:00:15]} Rh8+ {[%emt 0:00:35]} 71. gxh8=Q {[%emt 0:00:21]} Ke6 {[%emt 0:00:17]} 72. Re5+ {[%emt 0:00:21]} Kd7 {[%emt 0:00:17]} 73. Qe8+ {[%emt 0:00:07]} Kc7 {[%emt 0:00:09]} 74. Re7# 1-0

[Event "DVM U12 2021-22"]
[Site "Naumburg"]
[Date "2022.03.28"]
[Round "6"]
[White "Dorendorf, Mika"]
[Black "Detjen, Mattes"]
[Result "1-0"]
[ECO "C56"]
[WhiteElo "1550"]
[BlackElo "1124"]
[Annotator "COMBH"]
[PlyCount "51"]
[EventDate "2022.03.25"]
[EventType "team-tourn"]
[EventRounds "7"]
[EventCountry "GER"]
[SourceTitle "playchess.com"]
[Source "ChessBase"]
[SourceQuality "1"]
[TimeControl "40/5400+30:1800+30"]

1. e4 {[%emt 0:00:01]} e5 {[%emt 0:00:09]} 2. Nf3 {[%emt 0:00:03]} Nc6 {[%emt 0:00:08]} 3. d4 {[%emt 0:00:04]} exd4 {[%emt 0:00:37]} 4. Bc4 {[%emt 0:00:05]} Nf6 {[%emt 0:00:07]} 5. O-O {[%emt 0:00:06]} Nxe4 {[%emt 0:00:22]} 6. Re1 {[%emt 0:00:04]} d5 {[%emt 0:00:10]} 7. Bxd5 {[%emt 0:00:05]} Qxd5 {[%emt 0:00:08]} 8. Nc3 {[%emt 0:00:03]} Qd8 {[%emt 0:00:43]} 9. Rxe4+ {[%emt 0:00:46]} Be6 {[%emt 0:01:30]} 10. Nxd4 {[%emt 0:00:57]} Nxd4 {[%emt 0:02:05]} 11. Rxd4 {[%emt 0:00:39]} Bd6 {[%emt 0:02:08]} 12. Nb5 {[%emt 0:00:17]} Ke7 {[%emt 0:03:17]} 13. Bf4 {[%emt 0:00:31]} Kf8 {[%emt 0:05:27]} 14. Nxc7 {[%emt 0:02:03]} Rc8 {[%emt 0:02:39]} 15. Nxe6+ {[%emt 0:00:55]} fxe6 {[%emt 0:02:13]} 16. Rxd6 {[%emt 0:00:06]} Qf6 {[%emt 0:03:08]} 17. Qd4 {[%emt 0:00:47]} Qf7 {[%emt 0:02:23]} 18. Rd7 {[%emt 0:00:06]} Qf6 {[%emt 0:04:20]} 19. Be5 {[%emt 0:00:26]} Qg6 {[%emt 0:00:38]} 20. Qd6+ {[%emt 0:00:23]} Kg8 {[%emt 0:00:54]} 21. Rxg7+ {[%emt 0:00:33]} Qxg7 {[%emt 0:00:14]} 22. Bxg7 {[%emt 0:00:08]} Kxg7 {[%emt 0:00:03]} 23. Qe7+ {[%emt 0:00:07]} Kg6 {[%emt 0:00:49]} 24. Qxe6+ {[%emt 0:00:06]} Kg7 {[%emt 0:00:49]} 25. Rd1 {[%emt 0:00:39]} Rcd8 {[%emt 0:01:01]} 26. Qe7+ {[%emt 0:00:45]} 1-0

[Event "DVM U12 2021-22"]
[Site "Naumburg"]
[Date "2022.03.28"]
[Round "6"]
[White "Stettner, Oskar"]
[Black "Flierl, Veronika"]
[Result "0-1"]
[ECO "B13"]
[WhiteElo "1446"]
[BlackElo "1356"]
[Annotator "NA RC"]
[PlyCount "116"]
[EventDate "2022.03.25"]
[EventType "team-tourn"]
[EventRounds "7"]
[EventCountry "GER"]
[SourceTitle "playchess.com"]
[Source "ChessBase"]
[SourceQuality "1"]
[TimeControl "40/5400+30:1800+30"]

1. e4 {[%emt 0:00:04]} c6 {[%emt 0:00:06]} 2. d4 {[%emt 0:00:11]} d5 {[%emt 0:00:04]} 3. exd5 {[%emt 0:00:13]} cxd5 {[%emt 0:00:09]} 4. c4 {[%emt 0:00:03]} e6 {[%emt 0:00:41]} 5. Nc3 {[%emt 0:00:30]} h6 {[%emt 0:03:45]} 6. Nf3 {[%emt 0:00:44]} Nf6 {[%emt 0:01:04]} 7. cxd5 {[%emt 0:09:08]} exd5 {[%emt 0:00:21]} 8. Bd3 {[%emt 0:01:35]} Bd6 {[%emt 0:05:09]} 9. O-O {[%emt 0:01:49]} O-O {[%emt 0:00:22]} 10. h3 {[%emt 0:04:07]} Nc6 {[%emt 0:02:08]} 11. Be3 {[%emt 0:02:10]} Re8 {[%emt 0:03:06]} 12. Rc1 {[%emt 0:05:29]} Bb8 {[%emt 0:08:04]} 13. Re1 {[%emt 0:08:05]} a6 {[%emt 0:01:25]} 14. Bd2 {[%emt 0:04:41]} Rxe1+ {[%emt 0:06:34]} 15. Qxe1 {[%emt 0:01:08]} Qd6 {[%emt 0:01:35]} 16. Be3 {[%emt 0:01:33]} Be6 {[%emt 0:04:56]} 17. Qd2 {[%emt 0:04:51]} Ne7 {[%emt 0:09:41]} 18. Ne2 {[%emt 0:12:01]} Ne4 {[%emt 0:04:52]} 19. Bxe4 {[%emt 0:00:10]} dxe4 {[%emt 0:06:43]} 20. Bf4 {[%emt 0:10:54]} Qd5 {[%emt 0:06:32]} 21. Ne5 Nf5 22. b3 {[%emt 0:06:24]} Nh4 {[%emt 0:05:26]} 23. Nc3 {[%emt 0:02:30]} e3 {[%emt 0:02:22]} 24. Nxd5 {[%emt 0:01:28]} exd2 {[%emt 0:00:10]} 25. Ne7+ {[%emt 0:03:35]} Kf8 {[%emt 0:00:50]} 26. Bxd2 {[%emt 0:01:34]} Kxe7 {[%emt 0:00:33]} 27. Bb4+ {[%emt 0:01:26]} Kf6 {[%emt 0:02:45]} 28. Ng4+ {[%emt 0:01:59]} Kf5 {[%emt 0:04:22]} 29. d5 {[%emt 0:05:09]} Bxd5 {[%emt 0:04:28]} 30. Ne3+ {[%emt 0:00:51]} Ke6 {[%emt 0:00:12]} 31. Nxd5 {[%emt 0:00:29]} Kxd5 32. Rc5+ {[%emt 0:00:46]} Ke6 {[%emt 0:00:40]} 33. g3 {[%emt 0:00:09]} Bd6 {[%emt 0:03:32]} 34. gxh4 {[%emt 0:01:17]} Bxc5 {[%emt 0:00:13]} 35. Bxc5 {[%emt 0:00:04]} h5 {[%emt 0:02:05]} 36. b4 {[%emt 0:01:09]} Rd8 {[%emt 0:00:40]} 37. a4 {[%emt 0:00:24]} Rd1+ {[%emt 0:02:49]} 38. Kg2 {[%emt 0:01:12]} Rc1 {[%emt 0:05:48]} 39. Kg3 {[%emt 0:00:30]} Rxc5 {[%emt 0:03:18]} 40. bxc5 {[%emt 0:00:11]} Kd5 {[%emt 0:00:13]} 41. Kf4 {[%emt 0:31:25]} Kxc5 {[%emt 0:31:16]} 42. a5 {[%emt 0:02:14]} Kb4 {[%emt 0:00:00]} 43. Ke5 {[%emt 0:00:00]} Kxa5 {[%emt 0:00:00]} 44. Kd6 {[%emt 0:00:00]} Kb5 {[%emt 0:00:00]} 45. Ke7 {[%emt 0:00:00]} a5 {[%emt 0:00:00]} 46. Kxf7 {[%emt 0:00:00]} a4 {[%emt 0:00:00]} 47. Kxg7 {[%emt 0:00:00]} a3 {[%emt 0:00:00]} 48. f4 {[%emt 0:00:00]} a2 {[%emt 0:00:00]} 49. f5 {[%emt 0:00:00]} a1=Q+ {[%emt 0:00:00]} 50. f6 {[%emt 0:00:00]} Kc6 {[%emt 0:00:00]} 51. Kg6 {[%emt 0:00:00]} Kd7 {[%emt 0:00:00]} 52. Kf7 {[%emt 0:00:00]} b5 {[%emt 0:00:00]} 53. Kg6 {[%emt 0:00:00]} b4 {[%emt 0:00:00]} 54. Kf7 {[%emt 0:00:00]} b3 {[%emt 0:00:00]} 55. Kg6 {[%emt 0:00:00]} b2 {[%emt 0:00:00]} 56. Kf7 {[%emt 0:00:00]} b1=Q {[%emt 0:00:00]} 57. Kg8 {[%emt 0:00:00]} Qg6+ {[%emt 0:00:00]} 58. Kh8 {[%emt 0:00:00]} Qaxf6# {[%emt 0:00:00]} 0-1

[Event "DVM U12 2021-22"]
[Site "Naumburg"]
[Date "2022.03.28"]
[Round "6"]
[White "Ruddat, Jarne"]
[Black "Goldschmidt, Jakob"]
[Result "1-0"]
[ECO "B01"]
[WhiteElo "1419"]
[BlackElo "1081"]
[Annotator "COMBH"]
[PlyCount "75"]
[EventDate "2022.03.25"]
[EventType "team-tourn"]
[EventRounds "7"]
[EventCountry "GER"]
[SourceTitle "playchess.com"]
[Source "ChessBase"]
[SourceQuality "1"]
[TimeControl "40/5400+30:1800+30"]

1. e4 {[%emt 0:00:03]} d5 {[%emt 0:00:04]} 2. exd5 {[%emt 0:00:03]} Qxd5 {[%emt 0:00:09]} 3. Nc3 {[%emt 0:00:05]} Qd6 {[%emt 0:00:10]} 4. Bc4 {[%emt 0:00:14]} a6 {[%emt 0:00:21]} 5. d3 {[%emt 0:00:15]} b5 {[%emt 0:00:20]} 6. Bxf7+ {[%emt 0:03:22]} Kd8 {[%emt 0:09:47]} 7. Qf3 {[%emt 0:02:40]} Nc6 {[%emt 0:03:36]} 8. Bd5 {[%emt 0:00:09]} Nf6 {[%emt 0:12:43]} 9. Bxc6 {[%emt 0:00:23]} Bg4 {[%emt 0:03:23]} 10. Qg3 {[%emt 0:01:40]} Qxc6 {[%emt 0:02:34]} 11. h3 {[%emt 0:02:45]} Bf5 {[%emt 0:04:17]} 12. Nf3 {[%emt 0:01:40]} g6 {[%emt 0:09:16]} 13. O-O {[%emt 0:00:50]} Bg7 {[%emt 0:01:27]} 14. Ne5 {[%emt 0:00:26]} Qe6 {[%emt 0:02:08]} 15. Qf3 {[%emt 0:02:05]} Be4 {[%emt 0:06:36]} 16. Nxe4 {[%emt 0:00:23]} Rc8 {[%emt 0:10:04]} 17. Nxf6 {[%emt 0:00:27]} exf6 {[%emt 0:01:04]} 18. Nc6+ {[%emt 0:00:43]} Kd7 {[%emt 0:03:16]} 19. Nd4 {[%emt 0:01:04]} Qd6 {[%emt 0:01:46]} 20. Qg4+ {[%emt 0:00:54]} Ke8 {[%emt 0:04:08]} 21. Qxc8+ {[%emt 0:00:20]} Kf7 {[%emt 0:01:01]} 22. Qg4 {[%emt 0:00:25]} h5 {[%emt 0:01:48]} 23. Qe4 {[%emt 0:00:58]} f5 {[%emt 0:01:42]} 24. Nxf5 {[%emt 0:00:14]} gxf5 {[%emt 0:00:18]} 25. Qxf5+ {[%emt 0:00:04]} Kg8 {[%emt 0:00:45]} 26. Bf4 {[%emt 0:00:17]} Qd8 {[%emt 0:02:19]} 27. Rfe1 {[%emt 0:00:16]} Bxb2 {[%emt 0:01:13]} 28. Qg6+ {[%emt 0:00:19]} Kf8 {[%emt 0:00:55]} 29. Bh6+ {[%emt 0:00:15]} Rxh6 {[%emt 0:00:22]} 30. Qxh6+ {[%emt 0:00:03]} Bg7 {[%emt 0:00:12]} 31. Qf4+ {[%emt 0:00:07]} Kg8 {[%emt 0:00:19]} 32. Rab1 {[%emt 0:00:18]} Bc3 {[%emt 0:01:04]} 33. Re6 {[%emt 0:00:14]} Qd7 {[%emt 0:00:31]} 34. Rg6+ {[%emt 0:00:11]} Bg7 {[%emt 0:00:36]} 35. Re1 {[%emt 0:00:11]} Kh7 {[%emt 0:00:24]} 36. Qg5 {[%emt 0:00:13]} Bf8 {[%emt 0:01:49]} 37. Qxh5+ {[%emt 0:00:08]} Bh6 {[%emt 0:00:25]} 38. Qxh6# 1-0